bitfinex/quotes_SOLUSD_20260202
["timestamp","ask_amount","ask_price","bid_price","bid_amount"]
[1770043252588,78.88318643,105.29,105.21,0.48499309]
[1770043252589,6.39028008,105.29,105.21,0.48499309]
[1770043252890,6.39028008,105.29,105.25,15.1349771]
[1770043253071,6.39028008,105.29,105.24,15.1349771]
[1770043253272,15.1349771,105.28,105.22,0.48499309]
[1770043253473,6.39028008,105.29,105.22,15.61997019]
[1770043253692,6.39028008,105.29,105.17,26.92499309]
[1770043253693,15.1349771,105.24,105.17,26.92499309]
[1770043253893,15.1349771,105.24,105.18,15.1349771]
[1770043254099,15.41930024,105.24,105.18,15.1349771]
[1770043254491,0.28432314,105.24,105.18,15.1349771]
[1770043254994,15.61479602,105.27,105.22,15.1349771]
[1770043255189,15.61479602,105.27,105.19,0.48499309]
[1770043255190,15.61479602,105.27,105.21,15.1349771]
[1770043255394,0.47981892,105.28,105.19,15.61997019]
[1770043255690,15.61479602,105.24,105.17,0.48499309]
[1770043255891,15.61479602,105.23,105.17,15.61997019]
[1770043256078,0.28432314,105.22,105.17,15.61997019]
[1770043256283,15.1349771,105.21,105.16,15.1349771]
[1770043256483,15.1349771,105.2,105.15,0.48499309]
[1770043256683,15.1349771,105.21,105.15,15.61997019]
[1770043256884,15.1349771,105.21,105.16,15.1349771]
[1770043257091,15.1349771,105.21,105.15,15.61997019]
[1770043257598,15.1349771,105.21,105.16,15.1349771]
[1770043257801,5.36086188,105.27,105.12,26.44]
[1770043257802,0.47981892,105.26,105.2,15.1349771]
[1770043258098,0.47981892,105.27,105.2,0.48499309]
[1770043258396,15.61479602,105.25,105.19,15.1349771]
[1770043258898,0.47981892,105.25,105.19,15.1349771]
[1770043259101,0.14216157,105.24,105.18,15.1349771]
[1770043259303,15.61479602,105.25,105.19,15.1349771]
[1770043259604,15.61479602,105.25,105.17,9.99339262]
[1770043259787,15.61479602,105.25,105.19,15.1349771]
[1770043260109,0.47981892,105.25,105.19,15.1349771]
[1770043260397,0.47981892,105.25,105.11,26.44]
[1770043260398,0.62198049,105.19,105.11,26.44]
[1770043260592,0.62198049,105.21,105.14,0.48499309]
[1770043260793,0.62198049,105.21,105.15,15.1349771]
[1770043260983,15.61479602,105.21,105.15,15.1349771]
[1770043261180,15.1349771,105.2,105.14,15.61997019]
[1770043261501,15.1349771,105.18,105.12,0.48499309]
[1770043261685,15.1349771,105.18,105.13,15.1349771]
[1770043261999,0.47981892,105.21,105.16,15.1349771]
[1770043262198,15.61479602,105.21,105.15,0.48499309]
[1770043262498,15.1349771,105.19,105.13,0.48499309]
[1770043262703,15.61479602,105.2,105.13,0.48499309]
[1770043262904,0.47981892,105.19,105.14,15.1349771]
[1770043263104,0.47981892,105.19,105.13,0.48499309]
[1770043263105,15.61479602,105.19,105.13,15.61997019]
[1770043263487,15.61479602,105.19,105.14,15.1349771]
[1770043263695,15.61479602,105.19,105.13,15.61997019]
[1770043263881,0.47981892,105.26,105.18,15.1349771]
[1770043264092,0.47981892,105.28,105.15,9.50979892]
[1770043264384,15.61479602,105.27,105.22,15.1349771]
[1770043264584,15.61479602,105.26,105.15,80.83647509]
[1770043264799,15.61479602,105.24,105.18,15.1349771]
[1770043265304,0.14216157,105.25,105.11,26.44]
[1770043265305,0.47981892,105.19,105.11,26.44]
[1770043265601,0.47981892,105.16,105.01,47.44225654]
[1770043265782,0.28432314,105.17,105.05,4.27527085]
[1770043265983,0.47981892,105.2,105.13,15.1349771]
[1770043266206,0.47981892,105.24,105.17,15.1349771]
[1770043266383,15.1349771,105.21,105.16,15.1349771]
[1770043266799,15.1349771,105.23,105.18,15.1349771]
[1770043267104,0.47981892,105.22,105.18,15.1349771]
[1770043267303,15.61479602,105.22,105.16,15.1349771]
[1770043267509,5.36086188,105.28,105.19,15.1349771]
[1770043267510,0.14216157,105.24,105.19,15.1349771]
[1770043267684,15.61479602,105.24,105.19,15.1349771]
[1770043268192,0.47981892,105.19,105.14,15.1349771]
[1770043268506,0.47981892,105.19,105.13,9.51169159]
[1770043268507,15.61479602,105.21,105.16,15.1349771]
[1770043268688,15.61479602,105.2,105.15,15.1349771]
[1770043269004,0.47981892,105.2,105.16,15.1349771]
[1770043269208,0.47981892,105.2,105.15,15.1349771]
[1770043269502,15.61479602,105.2,105.15,15.1349771]
[1770043269799,15.61479602,105.2,105.14,15.1349771]
[1770043270000,0.47981892,105.18,105.13,15.1349771]
[1770043270189,15.61479602,105.17,105.12,15.1349771]
[1770043270503,0.47981892,105.26,105.17,0.40561422]
[1770043270824,0.47981892,105.26,105.22,15.1349771]
[1770043271099,0.47981892,105.25,105.2,15.1349771]
[1770043271405,15.61479602,105.21,105.14,0.40561422]
[1770043271698,15.61479602,105.21,105.15,7.18222729]
[1770043271907,0.47981892,105.21,105.17,15.1349771]
[1770043272701,0.47981892,105.21,105.18,15.1349771]
[1770043272881,0.47981892,105.21,105.17,15.1349771]
[1770043273284,0.47981892,105.21,105.18,15.1349771]
[1770043273498,0.47981892,105.23,105.19,15.1349771]
[1770043273895,15.61479602,105.23,105.17,15.54059132]
[1770043274101,15.61479602,105.23,105.18,15.1349771]
[1770043274296,0.47981892,105.23,105.18,24.64248138]
[1770043274600,15.61479602,105.25,105.2,15.1349771]
[1770043275010,0.47981892,105.25,105.21,15.1349771]
[1770043275409,0.47981892,105.24,105.19,15.1349771]
[1770043275594,0.47981892,105.24,105.2,15.1349771]
[1770043275795,0.47981892,105.24,105.21,15.1349771]
[1770043275995,0.47981892,105.24,105.2,15.1349771]
[1770043276400,30.84086188,105.31,105.15,15.54059132]
[1770043276401,0.47981892,105.21,105.15,15.54059132]
[1770043276598,15.61479602,105.22,105.15,9.91548197]
[1770043276899,0.47981892,105.28,105.21,15.54059132]
[1770043277091,0.47981892,105.28,105.24,15.1349771]
[1770043277694,0.47981892,105.28,105.21,0.40561422]
[1770043277916,0.47981892,105.28,105.24,15.1349771]
[1770043278089,0.47981892,105.28,105.21,0.40561422]
[1770043278291,15.61479602,105.29,105.23,15.1349771]
[1770043278489,15.61479602,105.28,105.23,15.1349771]
[1770043278698,0.47981892,105.27,105.22,15.1349771]
[1770043278894,0.47981892,105.27,105.23,15.1349771]
[1770043279112,15.61479602,105.26,105.17,26.42]
[1770043279412,15.61479602,105.24,105.19,15.1349771]
[1770043279711,0.47981892,105.24,105.19,15.1349771]
[1770043279918,0.47981892,105.24,105.2,15.1349771]
[1770043280116,4.27527085,105.27,105.18,15.1349771]
[1770043280289,0.45050498,105.25,105.21,15.1349771]
[1770043280615,0.45050498,105.24,105.2,15.10104264]
[1770043280808,0.45050498,105.23,105.18,15.10104264]
[1770043280990,15.55154762,105.23,105.18,15.10104264]
[1770043281308,15.55154762,105.21,105.15,15.50665686]
[1770043281509,15.55154762,105.21,105.15,0.40561422]
[1770043281710,15.55154762,105.18,105.11,0.40561422]
[1770043281895,15.10104264,105.17,105.12,15.10104264]
[1770043282091,15.10104264,105.15,105.09,0.40561422]
[1770043282300,15.55154762,105.14,105.08,15.10104264]
[1770043282500,0.45050498,105.14,105.08,9.51651868]
[1770043282712,15.55154762,105.14,105.08,15.10104264]
[1770043282895,4.27527085,105.18,105.06,26.42]
[1770043282896,0.45050498,105.11,105.06,26.42]
[1770043283215,0.45050498,105.13,105.06,36.34321802]
[1770043283409,0.45050498,105.13,105.08,15.10104264]
[1770043283997,15.55154762,105.13,105.08,15.10104264]
[1770043284219,0.45050498,105.13,105.09,15.10104264]
[1770043284415,15.83587076,105.15,105.09,15.10104264]
[1770043284619,0.45050498,105.13,105.04,0.40561422]
[1770043284922,0.45050498,105.12,105.07,15.10104264]
[1770043285122,0.45050498,105.12,105.08,15.10104264]
[1770043285427,15.55154762,105.11,105.05,15.10104264]
[1770043285716,0.45050498,105.1,105.06,15.10104264]
[1770043285920,15.55154762,105.12,105.06,15.10104264]
[1770043286119,0.28432314,105.13,105.06,15.10104264]
[1770043286120,15.55154762,105.11,105.06,15.10104264]
[1770043286324,15.55154762,105.11,105.05,15.10104264]
[1770043286496,15.55154762,105.11,105.06,15.10104264]
[1770043286697,15.83587076,105.13,105.07,15.10104264]
[1770043286920,15.83587076,105.13,105.03,0.40561422]
[1770043286921,0.45050498,105.12,105.03,0.40561422]
[1770043287122,15.55154762,105.09,105.03,15.50665686]
[1770043287324,0.45050498,105.09,105.06,15.10104264]
[1770043287635,0.45050498,105.12,105.08,15.10104264]
[1770043287929,0.45050498,105.14,105.1,15.10104264]
[1770043288101,15.10104264,105.16,105.04,48.42153694]
[1770043288102,15.55154762,105.16,105.11,15.10104264]
[1770043288300,0.45050498,105.16,105.08,0.40561422]
[1770043288607,0.45050498,105.16,105.11,15.10104264]
[1770043288608,15.55154762,105.16,105.11,15.10104264]
[1770043288803,0.45050498,105.16,105.09,0.40561422]
[1770043289026,0.45050498,105.16,105.12,15.10104264]
[1770043289525,0.45050498,105.16,105.11,15.10104264]
[1770043289818,0.45050498,105.16,105.12,15.10104264]
[1770043290017,0.45050498,105.16,105.11,15.10104264]
[1770043290394,15.55154762,105.15,105.08,0.40561422]
[1770043290596,15.55154762,105.13,105.06,0.40561422]
[1770043290823,0.45050498,105.12,105.07,15.10104264]
[1770043291001,15.55154762,105.14,105.08,15.10104264]
[1770043291204,0.45050498,105.16,105.1,15.10104264]
[1770043291402,0.45050498,105.16,105.12,15.10104264]
[1770043291794,15.55154762,105.16,105.11,15.10104264]
[1770043291999,15.55154762,105.14,105.09,15.10104264]
[1770043292599,15.55154762,105.12,105.05,0.40561422]
[1770043292796,15.55154762,105.11,105.06,15.10104264]
[1770043293411,0.45050498,105.13,105.08,15.10104264]
[1770043293611,0.45050498,105.15,105.09,15.10104264]
[1770043293811,0.45050498,105.17,105.12,15.10104264]
[1770043294034,0.45050498,105.17,105.13,15.10104264]
[1770043294203,0.45050498,105.26,105.14,15.10104264]
[1770043294407,0.45050498,105.2,105.15,15.10104264]
[1770043294610,0.45050498,105.19,105.15,15.10104264]
[1770043294926,0.45050498,105.19,105.12,0.40561422]
[1770043294927,0.45050498,105.18,105.13,15.10104264]
[1770043295115,0.45050498,105.16,105.1,0.40561422]
[1770043295425,0.45050498,105.17,105.09,0.40561422]
[1770043295629,15.10104264,105.18,105.09,0.40561422]
[1770043295630,15.55154762,105.16,105.11,15.10104264]
[1770043295815,0.45050498,105.16,105.11,15.10104264]
[1770043296014,15.55154762,105.16,105.11,15.10104264]
[1770043296208,15.55154762,105.16,105.1,15.10104264]
[1770043296431,15.10104264,105.14,105.09,15.10104264]
[1770043296624,0.45050498,105.17,105.12,15.10104264]
[1770043296831,15.55154762,105.17,105.12,15.10104264]
[1770043297125,15.55154762,105.16,105.1,15.10104264]
[1770043297326,15.55154762,105.16,105.11,15.10104264]
[1770043298128,0.45050498,105.16,105.11,15.10104264]
[1770043298427,15.55154762,105.16,105.1,15.50665686]
[1770043298627,15.10104264,105.19,105.14,15.10104264]
[1770043298812,0.45050498,105.19,105.15,15.10104264]
[1770043299012,0.45050498,105.21,105.16,15.10104264]
[1770043299412,15.55154762,105.21,105.16,15.10104264]
[1770043300532,15.55154762,105.21,105.14,0.40561422]
[1770043300533,15.55154762,105.21,105.15,15.10104264]
[1770043300846,15.55154762,105.21,105.16,15.10104264]
[1770043301230,0.45050498,105.21,105.16,15.10104264]
[1770043301528,15.55154762,105.23,105.17,15.10104264]
[1770043301827,15.55154762,105.24,105.19,15.10104264]
[1770043302330,15.55154762,105.24,105.18,15.10104264]
[1770043302627,0.45050498,105.21,105.1,0.40561422]
[1770043302826,4.27527085,105.25,105.1,0.40561422]
[1770043302827,15.10104264,105.18,105.13,15.50665686]
[1770043303028,15.10104264,105.18,105.13,0.40561422]
[1770043303406,15.55154762,105.17,105.11,15.50665686]
[1770043303629,15.10104264,105.16,105.11,15.50665686]
[1770043303926,0.45050498,105.16,105.11,15.10104264]
[1770043304108,0.45050498,105.16,105.1,15.50665686]
[1770043304314,15.55154762,105.16,105.1,15.50665686]
[1770043304514,15.55154762,105.15,105.1,0.40561422]
[1770043304821,15.55154762,105.14,105.08,15.50665686]
[1770043305015,15.55154762,105.14,105.09,15.10104264]
[1770043305330,0.45050498,105.14,105.08,15.50665686]
[1770043305525,15.10104264,105.11,105.06,0.40561422]
[1770043305725,0.45050498,105.11,105.06,15.50665686]
[1770043306311,15.55154762,105.11,105.05,15.10104264]
[1770043306528,0.45050498,105.08,105.03,15.50665686]
[1770043306729,15.10104264,105.09,105.04,15.10104264]
[1770043306939,15.10104264,105.09,105.0,23.80858742]
[1770043306940,0.45050498,105.05,104.99,0.40561422]
[1770043307137,0.45050498,104.99,104.91,0.60561422]
[1770043307324,15.10104264,104.95,104.91,0.2]
[1770043307521,0.49395267,104.98,104.91,0.2]
[1770043307722,15.59499531,104.95,104.91,0.2]
[1770043308034,15.59499531,104.96,104.9,15.10104264]
[1770043308230,15.59499531,104.96,104.89,0.47308736]
[1770043308231,15.10104264,104.94,104.89,0.47308736]
[1770043308413,15.59499531,104.95,104.9,15.10104264]
[1770043308618,15.59499531,104.97,104.92,15.10104264]
[1770043308817,0.49395267,104.97,104.92,15.10104264]
[1770043309023,0.49395267,104.97,104.93,15.10104264]
[1770043309221,15.10104264,104.98,104.93,15.10104264]
[1770043309440,15.59499531,104.98,104.92,15.10104264]
[1770043309639,15.59499531,104.94,104.89,15.10104264]
[1770043309838,15.55310393,104.92,104.85,0.47638844]
[1770043310026,15.10104264,104.91,104.86,15.10104264]
[1770043310445,15.10104264,104.93,104.88,15.10104264]
[1770043310734,0.45206129,104.94,104.89,15.10104264]
[1770043310939,0.45206129,104.94,104.9,15.10104264]
[1770043311139,15.55310393,104.96,104.9,15.10104264]
[1770043311348,0.45206129,104.95,104.9,15.10104264]
[1770043311515,0.45206129,104.97,104.91,15.10104264]
[1770043311713,15.10104264,104.96,104.91,15.57743108]
[1770043311946,0.45206129,104.97,104.92,15.10104264]
[1770043312147,15.10104264,104.98,104.93,15.10104264]
[1770043312352,15.10104264,104.98,104.92,15.57743108]
[1770043312657,0.45206129,104.99,104.95,15.10104264]
[1770043312933,15.55310393,104.98,104.92,15.10104264]
[1770043313136,0.45206129,104.94,104.87,0.47638844]
[1770043313339,15.10104264,104.95,104.85,0.47638844]
[1770043313340,15.55310393,104.91,104.85,0.47638844]
[1770043313738,15.10104264,104.92,104.87,15.10104264]
[1770043313955,0.45206129,104.95,104.89,15.10104264]
[1770043314242,15.55310393,104.95,104.9,15.10104264]
[1770043314424,0.45206129,104.97,104.9,15.57743108]
[1770043314618,15.55310393,104.97,104.91,15.10104264]
[1770043314820,15.10104264,104.95,104.91,0.47638844]
[1770043315128,15.10104264,104.92,104.87,0.47638844]
[1770043315324,15.10104264,104.91,104.87,0.47638844]
[1770043315527,15.10104264,104.92,104.87,15.57743108]
[1770043315941,15.55310393,104.93,104.87,15.57743108]
[1770043316136,15.10104264,104.92,104.87,15.57743108]
[1770043316328,15.10104264,104.93,104.88,15.57743108]
[1770043316647,15.10104264,104.94,104.88,15.57743108]
[1770043316828,0.45206129,104.94,104.86,0.47638844]
[1770043317145,15.55310393,104.91,104.85,15.10104264]
[1770043317338,15.10104264,104.89,104.84,0.47638844]
[1770043317642,15.10104264,104.89,104.8,23.85409592]
[1770043317643,15.55310393,104.86,104.8,15.57743108]
[1770043317844,15.55310393,104.86,104.81,15.10104264]
[1770043318145,15.55310393,104.86,104.8,0.47638844]
[1770043318442,15.10104264,104.85,104.8,0.47638844]
[1770043318642,0.45206129,104.88,104.82,15.10104264]
[1770043318944,15.10104264,104.86,104.81,15.10104264]
[1770043319348,15.10104264,104.85,104.8,0.47638844]
[1770043319546,15.55310393,104.84,104.78,15.77743108]
[1770043319736,0.45206129,104.84,104.79,15.10104264]
[1770043320341,15.55310393,104.84,104.78,0.67638844]
[1770043320527,15.55310393,104.84,104.78,15.77743108]
[1770043320730,0.45206129,104.84,104.78,15.77743108]
[1770043320930,15.55310393,104.84,104.78,15.77743108]
[1770043321132,15.55310393,104.84,104.78,0.67638844]
[1770043321332,15.55310393,104.84,104.78,15.77743108]
[1770043321539,47.12223617,104.93,104.78,15.77743108]
[1770043321540,0.45206129,104.9,104.83,15.57743108]
[1770043321739,0.45206129,104.88,104.81,0.47638844]
[1770043321926,15.55310393,104.87,104.82,15.10104264]
[1770043322134,15.55310393,104.87,104.81,15.57743108]
[1770043322340,15.55310393,104.85,104.79,0.47638844]
[1770043322644,15.10104264,104.84,104.79,15.57743108]
[1770043322852,15.10104264,104.84,104.79,0.47638844]
[1770043323142,0.45206129,104.85,104.79,15.57743108]
[1770043323335,0.45206129,104.89,104.84,15.10104264]
[1770043323661,15.55310393,104.91,104.86,15.10104264]
[1770043323832,15.10104264,104.9,104.84,0.47638844]
[1770043324030,15.10104264,104.89,104.84,15.57743108]
[1770043324232,15.10104264,104.89,104.84,0.47638844]
[1770043324434,0.45206129,104.89,104.84,15.10104264]
[1770043324630,0.45206129,104.89,104.85,15.10104264]
[1770043325044,0.45206129,104.89,104.83,0.47638844]
[1770043325250,0.45206129,104.89,104.85,15.10104264]
[1770043325841,0.45206129,104.91,104.86,15.10104264]
[1770043326037,15.10104264,104.9,104.85,15.10104264]
[1770043326349,15.55310393,104.89,104.84,15.10104264]
[1770043326554,0.45206129,104.89,104.85,15.10104264]
[1770043326753,0.45206129,104.89,104.78,15.30104264]
[1770043326754,15.55310393,104.88,104.81,0.47638844]
[1770043326932,15.10104264,104.86,104.79,0.47638844]
[1770043327248,4.27527085,104.92,104.79,15.57743108]
[1770043327249,15.10104264,104.84,104.79,15.57743108]
[1770043327553,15.55310393,104.86,104.8,15.57743108]
[1770043327853,15.10104264,104.87,104.82,15.10104264]
[1770043328045,15.55310393,104.87,104.81,15.57743108]
[1770043328235,15.55310393,104.87,104.81,10.01724349]
[1770043328434,0.45206129,104.87,104.83,15.10104264]
[1770043328631,15.10104264,104.87,104.81,15.10104264]
[1770043328850,0.28432314,104.9,104.78,15.77743108]
[1770043328851,0.45206129,104.84,104.78,15.77743108]
[1770043329052,15.55310393,104.84,104.79,15.10104264]
[1770043329233,15.10104264,104.83,104.78,0.67638844]
[1770043329432,4.27527085,104.88,104.79,0.47638844]
[1770043329632,5.36086188,104.91,104.79,0.47638844]
[1770043329633,0.45206129,104.89,104.82,4.75165929]
[1770043329854,0.45206129,104.89,104.82,0.47638844]
[1770043330042,15.55310393,104.88,104.83,15.10104264]
[1770043330240,0.45206129,104.87,104.83,15.10104264]
[1770043330551,0.45206129,104.87,104.84,15.10104264]
[1770043330737,0.45206129,104.87,104.83,15.10104264]
[1770043331061,0.45206129,104.87,104.81,0.47638844]
[1770043331062,0.45206129,104.87,104.84,15.10104264]
[1770043331350,15.10104264,104.91,104.84,0.47638844]
[1770043331532,24.88,104.96,104.85,0.47638844]
[1770043331733,15.10104264,104.92,104.87,15.10104264]
[1770043331941,15.10104264,104.91,104.86,15.57743108]
[1770043332137,15.10104264,104.9,104.84,15.57743108]
[1770043332343,15.10104264,104.9,104.85,15.10104264]
[1770043332658,8.74833199,104.89,104.84,9.22472043]
[1770043332843,8.74833199,104.9,104.85,8.74833199]
[1770043333046,8.74833199,104.92,104.86,9.22472043]
[1770043333236,9.20039328,104.92,104.86,9.22472043]
[1770043333436,8.74833199,104.91,104.86,9.22472043]
[1770043333831,0.45206129,104.94,104.88,8.74833199]
[1770043334031,8.74833199,104.93,104.88,8.74833199]
[1770043334333,15.18865206,104.95,104.9,15.6650405]
[1770043334541,0.45206129,104.96,104.9,15.6650405]
[1770043334752,15.18865206,104.94,104.9,0.47638844]
[1770043335151,0.45206129,104.96,104.9,0.47638844]
[1770043335350,15.18865206,104.95,104.9,0.47638844]
[1770043335536,0.45206129,105.0,104.92,15.6650405]
[1770043335858,15.18865206,105.01,104.95,15.6650405]
[1770043336040,15.74071335,105.02,104.96,15.6650405]
[1770043336239,0.1,105.02,104.98,15.6650405]
[1770043336442,0.1,105.02,104.98,0.47638844]
[1770043336642,0.45206129,105.07,105.01,15.18865206]
[1770043336863,24.82,105.14,104.93,26.5]
[1770043337052,24.82,105.14,104.89,0.95337973]
[1770043337053,0.45206129,105.04,104.98,0.47638844]
[1770043337262,15.18865206,105.01,104.96,0.47638844]
[1770043337449,15.18865206,104.98,104.92,0.47638844]
[1770043337757,15.18865206,104.98,104.94,0.47638844]
[1770043337936,15.18865206,104.99,104.94,0.47638844]
[1770043338388,0.45206129,105.0,104.94,0.47638844]
[1770043338661,0.45206129,105.0,104.95,0.47638844]
[1770043338872,15.18865206,105.01,104.96,0.47638844]
[1770043339156,15.18865206,105.04,104.99,15.6650405]
[1770043339360,15.18865206,105.05,105.0,15.6650405]
[1770043339551,15.18865206,105.05,104.98,9.52556082]
[1770043339552,15.18865206,105.07,105.02,15.6650405]
[1770043339854,15.18865206,105.09,105.03,15.6595119]
[1770043340060,15.18865206,105.09,105.04,15.6595119]
[1770043340438,15.18865206,105.06,105.02,0.47085984]
[1770043341141,0.47079772,105.08,105.0,0.47085984]
[1770043341450,0.47079772,105.13,105.06,15.6595119]
[1770043341652,0.47079772,105.13,105.07,15.6595119]
[1770043341845,15.18865206,105.12,105.07,15.6595119]
[1770043342050,15.18865206,105.11,105.07,0.47085984]
[1770043342250,15.18865206,105.12,105.07,0.47085984]
[1770043342457,15.13872545,105.12,105.07,0.47085984]
[1770043342653,0.47079772,105.13,105.07,0.47085984]
[1770043342969,4.27527085,105.14,105.03,0.47085984]
[1770043343269,15.13872545,105.14,105.09,0.47085984]
[1770043343568,15.13872545,105.13,105.09,0.47085984]
[1770043343752,15.13872545,105.14,105.09,0.47085984]
[1770043344370,15.13872545,105.19,105.14,0.47085984]
[1770043344578,15.13872545,105.17,105.14,0.47085984]
[1770043344745,15.13872545,105.17,105.06,42.95015857]
[1770043344746,15.13872545,105.15,105.1,0.47085984]
[1770043344946,15.13872545,105.13,105.1,0.47085984]
[1770043345162,0.47079772,105.16,105.1,0.47085984]
[1770043345464,15.13872545,105.13,105.1,0.47085984]
[1770043345670,15.13872545,105.12,105.08,0.47085984]
[1770043345963,0.47079772,105.16,105.09,0.47085984]
[1770043346165,15.13872545,105.12,105.09,0.47085984]
[1770043346370,0.47079772,105.13,105.05,0.47085984]
[1770043346577,15.13872545,105.1,105.05,0.47085984]
[1770043346866,15.13872545,105.1,105.06,0.47085984]
[1770043347768,15.13872545,105.09,105.06,0.47085984]
[1770043347946,15.13872545,105.08,105.02,15.13872545]
[1770043348142,15.13872545,105.07,105.04,0.47085984]
[1770043348359,0.47079772,105.1,105.04,0.47085984]
[1770043348559,4.27527085,105.13,105.0,0.47085984]
[1770043348560,15.60952317,105.05,105.0,0.47085984]
[1770043348762,15.13872545,105.01,104.98,0.47085984]
[1770043348965,15.13872545,105.0,104.96,0.47085984]
[1770043349664,0.47079772,105.04,104.96,0.47085984]
[1770043349868,15.13872545,105.01,104.96,0.47085984]
[1770043350065,0.47079772,105.04,104.96,0.47085984]
[1770043350066,15.13872545,105.02,104.96,0.47085984]
[1770043350278,15.13872545,105.01,104.96,0.47085984]
[1770043350450,15.13872545,104.99,104.96,0.47085984]
[1770043350654,15.13872545,104.99,104.94,0.47085984]
[1770043350851,15.13872545,104.98,104.95,0.47085984]
[1770043351082,0.47079772,105.01,104.95,0.47085984]
[1770043351280,15.13872545,104.97,104.93,0.47085984]
[1770043351453,15.13872545,104.96,104.91,0.47085984]
[1770043351783,4.27527085,105.03,104.91,0.47085984]
[1770043351784,15.13872545,104.95,104.91,0.47085984]
[1770043351979,15.13872545,104.96,104.91,0.47085984]
[1770043352267,0.47079772,104.98,104.91,0.47085984]
[1770043352456,15.13872545,104.96,104.91,0.47085984]
[1770043352660,0.47079772,104.98,104.91,0.47085984]
[1770043352967,15.13872545,104.96,104.91,0.47085984]
[1770043353175,15.13872545,105.0,104.95,0.47085984]
[1770043353559,0.47079772,105.02,104.95,0.47085984]
[1770043353560,15.13872545,104.99,104.95,0.47085984]
[1770043353867,15.13872545,105.01,104.96,0.47085984]
[1770043354064,0.47079772,105.04,104.97,0.47085984]
[1770043354372,15.13872545,105.01,104.97,0.47085984]
[1770043354572,15.13872545,105.0,104.95,0.47085984]
[1770043355266,0.47079772,105.01,104.95,0.47085984]
[1770043355470,15.13872545,104.97,104.93,0.47085984]
[1770043355661,15.13872545,104.99,104.94,0.47085984]
[1770043355975,15.13872545,104.98,104.94,0.47085984]
[1770043356170,0.47079772,105.01,104.94,0.47085984]
[1770043356171,15.13872545,104.99,104.94,0.47085984]
[1770043356360,15.13872545,104.98,104.94,0.47085984]
[1770043357287,15.13872545,104.99,104.94,0.47085984]
[1770043357458,15.13872545,104.98,104.92,15.60958529]
[1770043357778,15.13872545,104.96,104.93,0.47085984]
[1770043358473,15.13872545,104.96,104.87,28.11339831]
[1770043358474,15.13872545,104.94,104.85,0.47085984]
[1770043358677,15.13872545,104.89,104.85,0.47085984]
[1770043358975,0.28432314,104.95,104.85,0.47085984]
[1770043358976,4.55959399,104.95,104.85,0.47085984]
[1770043359178,15.13872545,104.89,104.85,0.47085984]
[1770043359377,4.55959399,104.95,104.85,0.47085984]
[1770043359578,15.13872545,104.87,104.84,0.2]
[1770043359765,15.13872545,104.86,104.84,0.2]
[1770043359966,15.13872545,104.87,104.84,0.2]
[1770043360177,15.13872545,104.86,104.84,0.2]
[1770043360368,15.13872545,104.87,104.84,0.2]
[1770043360573,15.13872545,104.85,104.8,0.47085984]
[1770043360775,19.4139963,104.91,104.79,0.47085984]
[1770043360776,15.13872545,104.83,104.79,0.47085984]
[1770043360964,0.28432314,104.9,104.79,0.47085984]
[1770043360965,15.13872545,104.84,104.79,0.47085984]
[1770043361275,15.13872545,104.84,104.78,0.2]
[1770043361276,15.13872545,104.86,104.81,0.47085984]
[1770043361579,15.13872545,104.82,104.79,0.47085984]
[1770043361880,15.13872545,104.83,104.79,0.47085984]
[1770043362581,15.13872545,104.82,104.79,0.47085984]
[1770043362875,15.13872545,104.8,104.78,0.2]
[1770043363071,15.60952317,104.79,104.73,0.47085984]
[1770043363272,15.13872545,104.75,104.73,0.47085984]
[1770043364560,15.13872545,104.75,104.7,0.47085984]
[1770043364781,15.13872545,104.74,104.7,0.47085984]
[1770043364983,15.13872545,104.73,104.7,0.47085984]
[1770043365371,15.13872545,104.74,104.7,0.47085984]
[1770043365766,15.13872545,104.72,104.68,0.67085984]
[1770043365971,15.13872545,104.74,104.69,0.47085984]
[1770043366461,15.13872545,104.73,104.69,0.47085984]
[1770043366782,15.13872545,104.71,104.68,0.67085984]
[1770043366986,15.13872545,104.7,104.68,0.2]
[1770043367183,15.13872545,104.72,104.69,0.47085984]
[1770043367367,15.13872545,104.71,104.68,0.2]
[1770043367867,15.13872545,104.7,104.68,0.2]
[1770043368398,15.13872545,104.69,104.68,0.2]
[1770043369467,15.13872545,104.69,104.65,0.8429267]
[1770043369468,15.13872545,104.69,104.65,0.3556691]
[1770043369668,15.13872545,104.66,104.65,0.3556691]
[1770043369873,15.13872545,104.66,104.61,0.5]
[1770043370074,15.13872545,104.62,104.58,0.5]
[1770043370279,15.13872545,104.61,104.58,0.5]
[1770043370580,15.13872545,104.63,104.58,0.5]
[1770043370786,15.13872545,104.64,104.59,0.5]
[1770043371364,0.14216157,104.7,104.59,0.5]
[1770043371365,15.13872545,104.63,104.59,0.5]
[1770043371574,15.13872545,104.64,104.59,0.5]
[1770043372287,15.13872545,104.63,104.59,0.5]
[1770043373166,15.13872545,104.64,104.59,0.5]
[1770043373577,15.13872545,104.63,104.59,0.5]
[1770043373778,0.28432314,104.7,104.59,0.5]
[1770043373779,15.13872545,104.62,104.59,0.5]
[1770043373979,0.28432314,104.7,104.59,0.5]
[1770043374177,15.13872545,104.64,104.59,0.5]